[Event "Titled Tuesday Blitz April 19 Early 2022"]
[White "Plazuelo Pascual, Juan"]
[Black "Nugumanov, Bakhtiyar"]
[WhiteFideId "32059566"]
[BlackFideId "13701797"]
[WhiteElo "2359"]
[BlackElo "2262"]
[Result "1-0"]
[Round "01"]
[TimeControl "180+1"]
[Date "2022.04.19"]
[WhiteClock "0:01:27"]
[BlackClock "0:00:00"]

1. d4 {[%clk 0:03:00]}  d5 {[%clk 0:02:59]} 2. c4 {[%clk 0:02:59]}  e6 {[%clk 0:02:51]} 3. Nc3 {[%clk 0:02:58]}  Nf6 {[%clk 0:02:51]} 4. Bg5 {[%clk 0:02:57]}  Be7 {[%clk 0:02:19]} 5. e3 {[%clk 0:02:52]}  O-O {[%clk 0:02:19]} 6. Nf3 {[%clk 0:02:52]}  Nbd7 {[%clk 0:02:17]} 7. cxd5 {[%clk 0:02:49]}  Nxd5 {[%clk 0:02:16]} 8. Bxe7 {[%clk 0:02:49]}  Qxe7 {[%clk 0:02:17]} 9. Bd3 {[%clk 0:02:46]}  c5 {[%clk 0:02:14]} 10. Nxd5 {[%clk 0:02:45]}  exd5 {[%clk 0:02:14]} 11. dxc5 {[%clk 0:02:33]}  Nxc5 {[%clk 0:02:14]} 12. O-O {[%clk 0:02:33]}  Bg4 {[%clk 0:02:04]} 13. Be2 {[%clk 0:02:33]}  Bxf3 {[%clk 0:01:57]} 14. Bxf3 {[%clk 0:02:32]}  Rfd8 {[%clk 0:01:55]} 15. Rc1 {[%clk 0:02:07]}  Ne4 {[%clk 0:01:31]} 16. Qd4 {[%clk 0:02:04]}  h6 {[%clk 0:00:30]} 17. Rfd1 {[%clk 0:02:03]}  Kh7 {[%clk 0:00:14]} 18. g3 {[%clk 0:01:52]}  Nf6 {[%clk 0:00:11]} 19. Qf4 {[%clk 0:01:47]}  Rd6 {[%clk 0:00:10]} 20. Rd2 {[%clk 0:01:43]}  Rad8 {[%clk 0:00:11]} 21. Rcd1 {[%clk 0:01:41]}  Qe6 {[%clk 0:00:11]} 22. h4 {[%clk 0:01:37]}  g6 {[%clk 0:00:03]} 23. a3 {[%clk 0:01:37]}  Kg7 {[%clk 0:00:03]} 24. Kg2 {[%clk 0:01:35]}  b6 {[%clk 0:00:03]} 25. Qd4 {[%clk 0:01:31]}  R8d7 {[%clk 0:00:02]} 26. Rc1 {[%clk 0:01:29]}  Kh7 {[%clk 0:00:00]} 27. Rdc2 {[%clk 0:01:27]} 1-0


[Site "https://www.chess.com"]

[Event "Titled Tuesday Blitz April 19 Early 2022"]
[White "Pranav, V"]
[Black "Petrovic, Aleksa"]
[WhiteFideId "25060783"]
[BlackFideId "967629"]
[WhiteElo "2349"]
[BlackElo "2198"]
[Result "1-0"]
[Round "01"]
[TimeControl "180+1"]
[Date "2022.04.19"]
[WhiteClock "0:02:19"]
[BlackClock "0:00:21"]

1. e4 {[%clk 0:02:59]}  c5 {[%clk 0:02:56]} 2. Nf3 {[%clk 0:02:58]}  e6 {[%clk 0:02:54]} 3. b3 {[%clk 0:02:57]}  b6 {[%clk 0:02:53]} 4. Bb2 {[%clk 0:02:56]}  Bb7 {[%clk 0:02:53]} 5. Nc3 {[%clk 0:02:57]}  d6 {[%clk 0:02:49]} 6. d4 {[%clk 0:02:56]}  cxd4 {[%clk 0:02:49]} 7. Nxd4 {[%clk 0:02:57]}  a6 {[%clk 0:02:49]} 8. g3 {[%clk 0:02:56]}  Nd7 {[%clk 0:02:41]} 9. Bg2 {[%clk 0:02:56]}  Ne7 {[%clk 0:02:37]} 10. O-O {[%clk 0:02:56]}  Nc8 {[%clk 0:02:10]} 11. Qg4 {[%clk 0:02:45]}  Nf6 {[%clk 0:02:03]} 12. Qe2 {[%clk 0:02:44]}  Qc7 {[%clk 0:01:55]} 13. Rad1 {[%clk 0:02:42]}  Be7 {[%clk 0:01:55]} 14. Rfe1 {[%clk 0:02:41]}  Nd7 {[%clk 0:01:50]} 15. Nd5 {[%clk 0:02:36]}  exd5 {[%clk 0:01:34]} 16. Nf5 {[%clk 0:02:36]}  d4 {[%clk 0:01:10]} 17. Nxg7+ {[%clk 0:02:29]}  Kd8 {[%clk 0:01:08]} 18. Bxd4 {[%clk 0:02:29]}  Rg8 {[%clk 0:00:57]} 19. Nf5 {[%clk 0:02:29]}  Bf8 {[%clk 0:00:54]} 20. Qh5 {[%clk 0:02:28]}  Nc5 {[%clk 0:00:48]} 21. Qxh7 {[%clk 0:02:26]}  Rg6 {[%clk 0:00:49]} 22. Qh8 {[%clk 0:02:22]}  Ne6 {[%clk 0:00:44]} 23. Bg7 {[%clk 0:02:19]}  Ke8 {[%clk 0:00:30]} 24. Bxf8 {[%clk 0:02:19]}  Nxf8 {[%clk 0:00:30]} 25. e5 {[%clk 0:02:20]}  d5 {[%clk 0:00:26]} 26. Nd6+ {[%clk 0:02:19]}  Ke7 {[%clk 0:00:23]} 27. Nxb7 {[%clk 0:02:19]}  Qxb7 {[%clk 0:00:22]} 28. Bxd5 {[%clk 0:02:20]}  Qb8 {[%clk 0:00:22]} 29. Qh4+ {[%clk 0:02:19]}  Ke8 {[%clk 0:00:21]} 30. Bc6+ {[%clk 0:02:19]} 1-0


[Site "https://www.chess.com"]

[Event "Titled Tuesday Blitz April 19 Early 2022"]
[White "Quirke, Jeffrey"]
[Black "Sydoryka, Vladyslav"]
[WhiteFideId "2013029"]
[BlackFideId "14145928"]
[WhiteElo "2178"]
[BlackElo "2283"]
[Result "1-0"]
[Round "01"]
[TimeControl "180+1"]
[Date "2022.04.19"]
[WhiteClock "0:00:06"]
[BlackClock "0:00:01"]

1. d4 {[%clk 0:03:00]}  Nf6 {[%clk 0:02:54]} 2. c4 {[%clk 0:03:00]}  c5 {[%clk 0:02:51]} 3. d5 {[%clk 0:02:59]}  b5 {[%clk 0:02:48]} 4. Qc2 {[%clk 0:02:59]}  e6 {[%clk 0:02:45]} 5. e4 {[%clk 0:02:50]}  bxc4 {[%clk 0:02:43]} 6. Nc3 {[%clk 0:02:47]}  exd5 {[%clk 0:02:40]} 7. e5 {[%clk 0:02:47]}  Qe7 {[%clk 0:02:35]} 8. Qe2 {[%clk 0:01:45]}  d4 {[%clk 0:00:36]} 9. exf6 {[%clk 0:01:12]}  Qxe2+ {[%clk 0:00:37]} 10. Ncxe2 {[%clk 0:01:11]}  d5 {[%clk 0:00:35]} 11. Nf4 {[%clk 0:01:06]}  Be6 {[%clk 0:00:35]} 12. g3 {[%clk 0:00:45]}  Nd7 {[%clk 0:00:30]} 13. fxg7 {[%clk 0:00:43]}  Bxg7 {[%clk 0:00:30]} 14. Bg2 {[%clk 0:00:44]}  Nb6 {[%clk 0:00:16]} 15. Ngh3 {[%clk 0:00:41]}  h6 {[%clk 0:00:10]} 16. Nxe6 {[%clk 0:00:41]}  fxe6 {[%clk 0:00:10]} 17. Nf4 {[%clk 0:00:41]}  Kd7 {[%clk 0:00:10]} 18. O-O {[%clk 0:00:40]}  Kd6 {[%clk 0:00:10]} 19. Re1 {[%clk 0:00:35]}  e5 {[%clk 0:00:09]} 20. Ng6 {[%clk 0:00:29]}  Rhe8 {[%clk 0:00:07]} 21. f4 {[%clk 0:00:19]}  e4 {[%clk 0:00:07]} 22. Nh4 {[%clk 0:00:20]}  d3 {[%clk 0:00:06]} 23. Nf5+ {[%clk 0:00:18]}  Kc6 {[%clk 0:00:07]} 24. Nxg7 {[%clk 0:00:19]}  Rf8 {[%clk 0:00:06]} 25. Rxe4 {[%clk 0:00:09]}  dxe4 {[%clk 0:00:07]} 26. Bxe4+ {[%clk 0:00:09]}  Kb5 {[%clk 0:00:04]} 27. Bxa8 {[%clk 0:00:08]}  Rxa8 {[%clk 0:00:05]} 28. Bd2 {[%clk 0:00:07]}  Rg8 {[%clk 0:00:01]} 29. Nf5 {[%clk 0:00:06]}  Nd5 {[%clk 0:00:01]} 30. Nd6+ {[%clk 0:00:06]}  Kc6 {[%clk 0:00:02]} 31. Nxc4 {[%clk 0:00:06]}  Re8 {[%clk 0:00:02]} 32. Ne5+ {[%clk 0:00:06]}  Kb6 {[%clk 0:00:02]} 33. Rc1 {[%clk 0:00:07]}  Nc7 {[%clk 0:00:01]} 34. Nxd3 {[%clk 0:00:06]} 1-0


[Site "https://www.chess.com"]

[Event "Titled Tuesday Blitz April 19 Early 2022"]
[White "Redor, Menandro"]
[Black "Vlassov, Nikolai"]
[WhiteFideId "5222010"]
[BlackFideId "4103360"]
[WhiteElo "1986"]
[BlackElo "2407"]
[Result "0-1"]
[Round "01"]
[TimeControl "180+1"]
[Date "2022.04.19"]
[WhiteClock "0:00:16"]
[BlackClock "0:00:43"]

1. c3 {[%clk 0:02:55]}  Nf6 {[%clk 0:02:58]} 2. d4 {[%clk 0:02:54]}  Nc6 {[%clk 0:02:57]} 3. Bf4 {[%clk 0:02:55]}  d6 {[%clk 0:02:52]} 4. Nd2 {[%clk 0:02:53]}  Bf5 {[%clk 0:02:51]} 5. e3 {[%clk 0:02:50]}  e5 {[%clk 0:02:51]} 6. Bg3 {[%clk 0:02:49]}  h5 {[%clk 0:02:48]} 7. h4 {[%clk 0:02:40]}  Be7 {[%clk 0:02:46]} 8. d5 {[%clk 0:02:27]}  Nxd5 {[%clk 0:02:33]} 9. e4 {[%clk 0:02:25]}  Bg4 {[%clk 0:02:33]} 10. Ngf3 {[%clk 0:01:29]}  Nb6 {[%clk 0:02:23]} 11. Be2 {[%clk 0:01:28]}  Qd7 {[%clk 0:02:19]} 12. a4 {[%clk 0:01:25]}  a5 {[%clk 0:02:15]} 13. Bb5 {[%clk 0:01:23]}  O-O {[%clk 0:02:13]} 14. Qb3 {[%clk 0:01:17]}  Qe6 {[%clk 0:02:09]} 15. Qc2 {[%clk 0:01:10]}  f5 {[%clk 0:01:57]} 16. Ng5 {[%clk 0:01:02]}  Bxg5 {[%clk 0:01:56]} 17. hxg5 {[%clk 0:01:02]}  f4 {[%clk 0:01:44]} 18. Bh4 {[%clk 0:00:55]}  Qg6 {[%clk 0:01:44]} 19. f3 {[%clk 0:00:53]}  Be6 {[%clk 0:01:44]} 20. O-O-O {[%clk 0:00:50]}  Rad8 {[%clk 0:01:03]} 21. Rh2 {[%clk 0:00:43]}  d5 {[%clk 0:00:52]} 22. exd5 {[%clk 0:00:43]}  Qxc2+ {[%clk 0:00:50]} 23. Kxc2 {[%clk 0:00:42]}  Nxd5 {[%clk 0:00:51]} 24. Bxc6 {[%clk 0:00:42]}  Ne3+ {[%clk 0:00:46]} 25. Kc1 {[%clk 0:00:41]}  Nxd1 {[%clk 0:00:45]} 26. Bxb7 {[%clk 0:00:36]}  Ne3 {[%clk 0:00:44]} 27. g6 {[%clk 0:00:27]}  Rxd2 {[%clk 0:00:43]} 28. Be7 {[%clk 0:00:16]}  Rd1# {[%clk 0:00:43]} 0-1


[Site "https://www.chess.com"]

[Event "Titled Tuesday Blitz April 19 Early 2022"]
[White "Rodchenkov, Vitaly"]
[Black "Ambartsumova, Karina"]
[WhiteFideId "4152964"]
[BlackFideId "4166299"]
[WhiteElo "2337"]
[BlackElo "2262"]
[Result "0-1"]
[Round "01"]
[TimeControl "180+1"]
[Date "2022.04.19"]
[WhiteClock "0:00:17"]
[BlackClock "0:00:17"]

1. Nf3 {[%clk 0:02:56]}  Nf6 {[%clk 0:02:59]} 2. c4 {[%clk 0:02:56]}  g6 {[%clk 0:02:59]} 3. b4 {[%clk 0:02:55]}  Bg7 {[%clk 0:02:59]} 4. Bb2 {[%clk 0:02:54]}  O-O {[%clk 0:02:59]} 5. e3 {[%clk 0:02:55]}  d6 {[%clk 0:02:56]} 6. Be2 {[%clk 0:02:54]}  c5 {[%clk 0:02:51]} 7. a3 {[%clk 0:02:51]}  b6 {[%clk 0:02:50]} 8. O-O {[%clk 0:02:50]}  Bb7 {[%clk 0:02:51]} 9. d3 {[%clk 0:02:49]}  Nbd7 {[%clk 0:02:47]} 10. Nbd2 {[%clk 0:02:50]}  Rc8 {[%clk 0:02:41]} 11. Qb3 {[%clk 0:02:46]}  d5 {[%clk 0:02:35]} 12. Rfc1 {[%clk 0:02:42]}  dxc4 {[%clk 0:02:31]} 13. Nxc4 {[%clk 0:02:33]}  Qc7 {[%clk 0:02:30]} 14. h3 {[%clk 0:02:28]}  Rfd8 {[%clk 0:02:27]} 15. Qc3 {[%clk 0:02:15]}  Qb8 {[%clk 0:02:06]} 16. Qb3 {[%clk 0:02:11]}  Bd5 {[%clk 0:02:02]} 17. bxc5 {[%clk 0:01:58]}  Nxc5 {[%clk 0:02:00]} 18. Qd1 {[%clk 0:01:48]}  Nxd3 {[%clk 0:01:34]} 19. Qxd3 {[%clk 0:01:28]}  Bxf3 {[%clk 0:01:15]} 20. Qc2 {[%clk 0:01:24]}  Be4 {[%clk 0:01:10]} 21. Qb3 {[%clk 0:01:18]}  Qb7 {[%clk 0:01:03]} 22. f3 {[%clk 0:01:13]}  Bd5 {[%clk 0:01:03]} 23. e4 {[%clk 0:01:10]}  Be6 {[%clk 0:01:03]} 24. Qb4 {[%clk 0:01:06]}  Rc5 {[%clk 0:00:44]} 25. Ne3 {[%clk 0:01:01]}  Rxc1+ {[%clk 0:00:40]} 26. Rxc1 {[%clk 0:01:00]}  Nh5 {[%clk 0:00:38]} 27. Bxg7 {[%clk 0:00:54]}  Nxg7 {[%clk 0:00:39]} 28. Kf2 {[%clk 0:00:54]}  Ne8 {[%clk 0:00:36]} 29. Bc4 {[%clk 0:00:49]}  Rc8 {[%clk 0:00:33]} 30. Rd1 {[%clk 0:00:41]}  Bxc4 {[%clk 0:00:31]} 31. Nxc4 {[%clk 0:00:42]}  Qc7 {[%clk 0:00:31]} 32. Ne3 {[%clk 0:00:37]}  Nf6 {[%clk 0:00:23]} 33. Nd5 {[%clk 0:00:34]}  Nxd5 {[%clk 0:00:23]} 34. Rxd5 {[%clk 0:00:32]}  e6 {[%clk 0:00:22]} 35. Rd2 {[%clk 0:00:29]}  Qc5+ {[%clk 0:00:21]} 36. Kg3 {[%clk 0:00:26]}  a5 {[%clk 0:00:18]} 37. Qb3 {[%clk 0:00:22]}  h5 {[%clk 0:00:17]} 38. Rb2 {[%clk 0:00:23]}  Rc6 {[%clk 0:00:17]} 39. a4 {[%clk 0:00:22]}  Qe5+ {[%clk 0:00:17]} 40. Kf2 {[%clk 0:00:20]}  Qd4+ {[%clk 0:00:18]} 41. Kg3 {[%clk 0:00:20]}  Qe5+ {[%clk 0:00:17]} 42. Kf2 {[%clk 0:00:20]}  h4 {[%clk 0:00:18]} 43. Qb5 {[%clk 0:00:18]}  Qg3+ {[%clk 0:00:17]} 44. Kg1 {[%clk 0:00:17]}  Rc1+ {[%clk 0:00:17]} 0-1


[Site "https://www.chess.com"]

[Event "Titled Tuesday Blitz April 19 Early 2022"]
[White "Samant Aditya S"]
[Black "Valle Maytin, Luis Enrique"]
[WhiteFideId "35080580"]
[BlackFideId "3503666"]
[WhiteElo "1916"]
[BlackElo "2310"]
[Result "1-0"]
[Round "01"]
[TimeControl "180+1"]
[Date "2022.04.19"]
[WhiteClock "0:00:23"]
[BlackClock "0:00:47"]

1. e4 {[%clk 0:03:00]}  c6 {[%clk 0:02:55]} 2. d4 {[%clk 0:02:57]}  d5 {[%clk 0:02:56]} 3. Nc3 {[%clk 0:02:57]}  dxe4 {[%clk 0:02:56]} 4. Nxe4 {[%clk 0:02:58]}  Nf6 {[%clk 0:02:56]} 5. Nxf6+ {[%clk 0:02:58]}  exf6 {[%clk 0:02:57]} 6. c3 {[%clk 0:02:58]}  Bd6 {[%clk 0:02:56]} 7. Bd3 {[%clk 0:02:58]}  O-O {[%clk 0:02:56]} 8. Qc2 {[%clk 0:02:59]}  h6 {[%clk 0:02:56]} 9. Be3 {[%clk 0:02:56]}  Re8 {[%clk 0:02:55]} 10. Ne2 {[%clk 0:02:55]}  Nd7 {[%clk 0:02:55]} 11. O-O {[%clk 0:02:44]}  Nf8 {[%clk 0:02:54]} 12. c4 {[%clk 0:02:27]}  Be6 {[%clk 0:02:53]} 13. Nc3 {[%clk 0:02:17]}  Rc8 {[%clk 0:02:42]} 14. Rad1 {[%clk 0:02:08]}  Qc7 {[%clk 0:02:19]} 15. h3 {[%clk 0:01:54]}  Qd7 {[%clk 0:02:10]} 16. Ne4 {[%clk 0:01:32]}  Bxh3 {[%clk 0:01:44]} 17. Nxd6 {[%clk 0:01:21]}  Qg4 {[%clk 0:01:28]} 18. f3 {[%clk 0:01:14]}  Qg3 {[%clk 0:01:08]} 19. Nxe8 {[%clk 0:01:07]}  Rxe8 {[%clk 0:01:07]} 20. Qf2 {[%clk 0:00:59]}  Qxg2+ {[%clk 0:00:58]} 21. Qxg2 {[%clk 0:00:56]}  Bxg2 {[%clk 0:00:59]} 22. Kxg2 {[%clk 0:00:57]}  Rxe3 {[%clk 0:01:00]} 23. Rfe1 {[%clk 0:00:57]}  Re6 {[%clk 0:01:00]} 24. Kf2 {[%clk 0:00:46]}  Rd6 {[%clk 0:00:59]} 25. Re8 {[%clk 0:00:43]}  g6 {[%clk 0:00:57]} 26. Be4 {[%clk 0:00:40]}  Kg7 {[%clk 0:00:56]} 27. Re7 {[%clk 0:00:26]}  Ne6 {[%clk 0:00:54]} 28. d5 {[%clk 0:00:26]}  Ng5 {[%clk 0:00:50]} 29. c5 {[%clk 0:00:22]}  Nxe4+ {[%clk 0:00:47]} 30. fxe4 {[%clk 0:00:23]} 1-0


[Site "https://www.chess.com"]

[Event "Titled Tuesday Blitz April 19 Early 2022"]
[White "Sapunov, Evgeny"]
[Black "Eynullayev, Atilla"]
[WhiteFideId "4126661"]
[BlackFideId "13413570"]
[WhiteElo "2470"]
[BlackElo "1936"]
[Result "1-0"]
[Round "01"]
[TimeControl "180+1"]
[Date "2022.04.19"]
[WhiteClock "0:00:47"]
[BlackClock "0:00:08"]

1. c4 {[%clk 0:02:56]}  e5 {[%clk 0:02:59]} 2. Nf3 {[%clk 0:02:55]}  e4 {[%clk 0:02:56]} 3. Nd4 {[%clk 0:02:55]}  Nf6 {[%clk 0:02:53]} 4. g3 {[%clk 0:02:53]}  Bc5 {[%clk 0:02:53]} 5. Nc2 {[%clk 0:02:52]}  a5 {[%clk 0:02:52]} 6. Bg2 {[%clk 0:02:52]}  d6 {[%clk 0:02:50]} 7. Nc3 {[%clk 0:02:52]}  Bf5 {[%clk 0:02:50]} 8. Ne3 {[%clk 0:02:50]}  Bg6 {[%clk 0:02:49]} 9. Ned5 {[%clk 0:02:48]}  Nbd7 {[%clk 0:02:46]} 10. O-O {[%clk 0:02:45]}  c6 {[%clk 0:02:36]} 11. Nf4 {[%clk 0:02:45]}  Bf5 {[%clk 0:02:28]} 12. d3 {[%clk 0:02:37]}  exd3 {[%clk 0:02:05]} 13. Nxd3 {[%clk 0:02:37]}  Ba7 {[%clk 0:01:55]} 14. Bf4 {[%clk 0:02:19]}  Qe7 {[%clk 0:01:54]} 15. Qd2 {[%clk 0:02:07]}  O-O {[%clk 0:01:53]} 16. Rad1 {[%clk 0:02:03]}  Rad8 {[%clk 0:01:45]} 17. b3 {[%clk 0:01:58]}  Ne5 {[%clk 0:01:39]} 18. h3 {[%clk 0:01:48]}  h6 {[%clk 0:01:22]} 19. e4 {[%clk 0:01:44]}  Bh7 {[%clk 0:01:16]} 20. Rfe1 {[%clk 0:01:43]}  Nh5 {[%clk 0:01:00]} 21. Be3 {[%clk 0:01:42]}  Bxe3 {[%clk 0:01:00]} 22. Qxe3 {[%clk 0:01:41]}  Nxd3 {[%clk 0:00:50]} 23. Rxd3 {[%clk 0:01:40]}  Kh8 {[%clk 0:00:22]} 24. Red1 {[%clk 0:01:37]}  f5 {[%clk 0:00:20]} 25. exf5 {[%clk 0:01:37]}  Qxe3 {[%clk 0:00:20]} 26. Rxe3 {[%clk 0:01:37]}  Nf6 {[%clk 0:00:15]} 27. g4 {[%clk 0:01:34]}  Bg8 {[%clk 0:00:16]} 28. Red3 {[%clk 0:01:34]}  Ne8 {[%clk 0:00:15]} 29. Ne4 {[%clk 0:01:30]}  a4 {[%clk 0:00:12]} 30. Nxd6 {[%clk 0:01:22]}  Nxd6 {[%clk 0:00:12]} 31. Rxd6 {[%clk 0:01:22]}  Rde8 {[%clk 0:00:12]} 32. Bf3 {[%clk 0:01:19]}  Re5 {[%clk 0:00:09]} 33. Kg2 {[%clk 0:01:17]}  b5 {[%clk 0:00:09]} 34. Rxc6 {[%clk 0:01:15]}  bxc4 {[%clk 0:00:09]} 35. bxc4 {[%clk 0:01:15]}  Rb8 {[%clk 0:00:09]} 36. Rd2 {[%clk 0:01:08]}  Kh7 {[%clk 0:00:09]} 37. Rc7 {[%clk 0:01:08]}  a3 {[%clk 0:00:09]} 38. Rdd7 {[%clk 0:00:58]}  Rb2 {[%clk 0:00:09]} 39. Rxg7+ {[%clk 0:00:58]}  Kh8 {[%clk 0:00:10]} 40. Rgd7 {[%clk 0:00:52]}  Rxa2 {[%clk 0:00:09]} 41. Ra7 {[%clk 0:00:52]}  Rc5 {[%clk 0:00:08]} 42. Bd5 {[%clk 0:00:47]} 1-0


[Site "https://www.chess.com"]

[Event "Titled Tuesday Blitz April 19 Early 2022"]
[White "Shandrygin, Nikita"]
[Black "Praggnanandhaa R"]
[WhiteFideId "24198668"]
[BlackFideId "25059530"]
[WhiteElo "2323"]
[BlackElo "2599"]
[Result "0-1"]
[Round "01"]
[TimeControl "180+1"]
[Date "2022.04.19"]
[WhiteClock "0:00:03"]
[BlackClock "0:02:32"]

1. Nf3 {[%clk 0:03:00]}  c6 {[%clk 0:03:00]} 2. g3 {[%clk 0:03:00]}  Qc7 {[%clk 0:03:00]} 3. Bg2 {[%clk 0:03:00]}  e5 {[%clk 0:03:00]} 4. d3 {[%clk 0:03:00]}  d5 {[%clk 0:03:00]} 5. O-O {[%clk 0:03:00]}  Nf6 {[%clk 0:03:00]} 6. Nbd2 {[%clk 0:02:57]}  Bd6 {[%clk 0:03:00]} 7. e4 {[%clk 0:02:52]}  O-O {[%clk 0:03:01]} 8. Qe2 {[%clk 0:02:52]}  a5 {[%clk 0:02:59]} 9. c3 {[%clk 0:02:50]}  Na6 {[%clk 0:02:58]} 10. Rd1 {[%clk 0:02:49]}  a4 {[%clk 0:02:57]} 11. Rb1 {[%clk 0:02:46]}  dxe4 {[%clk 0:02:53]} 12. dxe4 {[%clk 0:02:42]}  Re8 {[%clk 0:02:52]} 13. Nc4 {[%clk 0:02:41]}  Bf8 {[%clk 0:02:52]} 14. Nfxe5 {[%clk 0:02:36]}  b5 {[%clk 0:02:44]} 15. Bf4 {[%clk 0:02:27]}  bxc4 {[%clk 0:02:43]} 16. Nxc4 {[%clk 0:02:25]}  Qb7 {[%clk 0:02:41]} 17. Qc2 {[%clk 0:02:19]}  Nc5 {[%clk 0:02:40]} 18. e5 {[%clk 0:02:10]}  Nd5 {[%clk 0:02:39]} 19. Be4 {[%clk 0:01:21]}  Nxe4 {[%clk 0:02:38]} 20. Qxe4 {[%clk 0:01:20]}  Be6 {[%clk 0:02:38]} 21. Qd4 {[%clk 0:01:16]}  Rad8 {[%clk 0:02:38]} 22. Nd6 {[%clk 0:01:16]}  Bxd6 {[%clk 0:02:38]} 23. exd6 {[%clk 0:01:17]}  Bh3 {[%clk 0:02:38]} 24. c4 {[%clk 0:01:13]}  Nxf4 {[%clk 0:02:36]} 25. Qxf4 {[%clk 0:01:12]}  c5 {[%clk 0:02:36]} 26. Rd5 {[%clk 0:01:11]}  Qxb2 {[%clk 0:02:34]} 27. Rbd1 {[%clk 0:01:08]}  Qxa2 {[%clk 0:02:34]} 28. d7 {[%clk 0:01:07]}  Rf8 {[%clk 0:02:33]} 29. g4 {[%clk 0:00:29]}  Qe2 {[%clk 0:02:32]} 30. f3 {[%clk 0:00:03]} 0-1


[Site "https://www.chess.com"]

[Event "Titled Tuesday Blitz April 19 Early 2022"]
[White "Skliarov, Viktor"]
[Black "Esipenko, Andrey"]
[WhiteFideId "14106736"]
[BlackFideId "24175439"]
[WhiteElo "2229"]
[BlackElo "2617"]
[Result "0-1"]
[Round "01"]
[TimeControl "180+1"]
[Date "2022.04.19"]
[WhiteClock "0:00:03"]
[BlackClock "0:00:07"]

1. e4 {[%clk 0:02:58]}  c6 {[%clk 0:02:58]} 2. d4 {[%clk 0:02:52]}  d5 {[%clk 0:02:58]} 3. e5 {[%clk 0:02:42]}  c5 {[%clk 0:02:58]} 4. dxc5 {[%clk 0:02:42]}  e6 {[%clk 0:02:59]} 5. a3 {[%clk 0:02:43]}  Bxc5 {[%clk 0:02:58]} 6. b4 {[%clk 0:02:43]}  Be7 {[%clk 0:02:58]} 7. Nf3 {[%clk 0:02:42]}  f6 {[%clk 0:02:57]} 8. Bb2 {[%clk 0:02:39]}  fxe5 {[%clk 0:02:53]} 9. Nxe5 {[%clk 0:02:38]}  Nf6 {[%clk 0:02:54]} 10. Nd2 {[%clk 0:02:27]}  O-O {[%clk 0:02:51]} 11. Ndf3 {[%clk 0:02:27]}  Nc6 {[%clk 0:02:41]} 12. Bd3 {[%clk 0:02:25]}  Bd7 {[%clk 0:02:36]} 13. O-O {[%clk 0:02:21]}  Bd6 {[%clk 0:02:34]} 14. Re1 {[%clk 0:02:18]}  a5 {[%clk 0:02:29]} 15. b5 {[%clk 0:02:17]}  Nxe5 {[%clk 0:02:30]} 16. Nxe5 {[%clk 0:02:16]}  Bc5 {[%clk 0:02:16]} 17. Rf1 {[%clk 0:01:30]}  Be8 {[%clk 0:02:14]} 18. h3 {[%clk 0:01:26]}  Bh5 {[%clk 0:02:13]} 19. Qd2 {[%clk 0:01:24]}  Qb6 {[%clk 0:02:10]} 20. g4 {[%clk 0:01:05]}  Be8 {[%clk 0:02:03]} 21. Kg2 {[%clk 0:01:04]}  Bxb5 {[%clk 0:02:02]} 22. a4 {[%clk 0:00:56]}  Ne4 {[%clk 0:02:00]} 23. Qe2 {[%clk 0:00:47]}  Bc6 {[%clk 0:01:32]} 24. Nxc6 {[%clk 0:00:41]}  Qxc6 {[%clk 0:01:32]} 25. f3 {[%clk 0:00:34]}  Nf6 {[%clk 0:01:28]} 26. Rfe1 {[%clk 0:00:30]}  Ne4 {[%clk 0:01:10]} 27. Bxe4 {[%clk 0:00:24]}  dxe4 {[%clk 0:01:09]} 28. Qxe4 {[%clk 0:00:25]}  Rad8 {[%clk 0:00:53]} 29. Bc3 {[%clk 0:00:12]}  Qxe4 {[%clk 0:00:37]} 30. Rxe4 {[%clk 0:00:13]}  b6 {[%clk 0:00:37]} 31. Rxe6 {[%clk 0:00:13]}  Rf4 {[%clk 0:00:32]} 32. Rc6 {[%clk 0:00:12]}  Rc4 {[%clk 0:00:31]} 33. Be5 {[%clk 0:00:09]}  Rxc2+ {[%clk 0:00:30]} 34. Kh1 {[%clk 0:00:08]}  Rd5 {[%clk 0:00:22]} 35. Rc8+ {[%clk 0:00:06]}  Kf7 {[%clk 0:00:22]} 36. Rc7+ {[%clk 0:00:06]}  Ke6 {[%clk 0:00:20]} 37. Bxg7 {[%clk 0:00:05]}  Rdd2 {[%clk 0:00:16]} 38. Re1+ {[%clk 0:00:05]}  Kd5 {[%clk 0:00:17]} 39. Be5 {[%clk 0:00:05]}  Kc4 {[%clk 0:00:11]} 40. Bf4 {[%clk 0:00:05]}  Rf2 {[%clk 0:00:11]} 41. Bg3 {[%clk 0:00:04]}  Rxf3 {[%clk 0:00:11]} 42. Rg1 {[%clk 0:00:02]}  Kb3 {[%clk 0:00:11]} 43. Rxc5 {[%clk 0:00:02]}  bxc5 {[%clk 0:00:11]} 44. g5 {[%clk 0:00:01]}  Kxa4 {[%clk 0:00:09]} 45. h4 {[%clk 0:00:02]}  c4 {[%clk 0:00:06]} 46. h5 {[%clk 0:00:02]}  Rf5 {[%clk 0:00:06]} 47. Bh4 {[%clk 0:00:01]}  Re2 {[%clk 0:00:06]} 48. Rg4 {[%clk 0:00:01]}  Rf1+ {[%clk 0:00:04]} 49. Rg1 {[%clk 0:00:01]}  Rxg1+ {[%clk 0:00:05]} 50. Kxg1 {[%clk 0:00:02]}  Re4 {[%clk 0:00:05]} 51. Bf2 {[%clk 0:00:01]}  Rg4+ {[%clk 0:00:06]} 52. Kf1 {[%clk 0:00:02]}  Rxg5 {[%clk 0:00:06]} 53. Be3 {[%clk 0:00:03]}  Rxh5 {[%clk 0:00:07]} 0-1


[Site "https://www.chess.com"]